bitfinex/quotes_ETHUSD_20250411
["timestamp","ask_amount","ask_price","bid_price","bid_amount"]
[1744334190715,1.5698,1523.0,1522.8,16.862483]
[1744334191525,1.5698,1523.2,1523.0,6.56556]
[1744334191725,1.5698,1523.2,1523.1,6.56555]
[1744334191913,1.5698,1523.3,1523.1,6.56555]
[1744334192113,1.5698,1523.3,1523.2,6.56512]
[1744334192433,1.9561513,1523.5,1523.2,6.56512]
[1744334192741,0.3863513,1523.5,1523.3,6.56467]
[1744334193233,6.9503213,1523.5,1523.2,6.06]
[1744334193530,0.3863513,1523.5,1523.2,19.19]
[1744334193735,0.3863513,1523.5,1523.3,6.56445]
[1744334193905,0.3863513,1523.5,1523.4,6.56426]
[1744334195628,0.3863513,1523.5,1523.3,13.61002414]
[1744334196329,0.3863513,1523.5,1523.3,13.61007414]
[1744334196546,0.3863513,1523.5,1523.4,6.56426]
[1744334196696,0.3863513,1523.5,1523.4,10.69228941]
[1744334197733,0.3863513,1523.5,1523.4,9.18768941]
[1744334198125,0.3863513,1523.5,1523.4,10.69228941]
[1744334199409,0.3863513,1523.5,1523.4,15.3221553]
[1744334200939,0.3863513,1523.5,1523.4,24.3821553]
[1744334201116,0.3863513,1523.5,1523.4,25.16488344]
[1744334201461,0.3863513,1523.5,1523.4,25.22202206]
[1744334202429,1.3e-06,1523.5,1523.4,25.22202206]
[1744334202626,0.1,1524.4,1524.1,6.56124]
[1744334202826,0.1,1524.4,1524.3,6.56038]
[1744334203668,0.1,1524.4,1524.3,7.05573496]
[1744334204235,0.1,1524.4,1524.3,6.56038]
[1744334206082,8.10343,1524.3,1524.0,7.601]
[1744334206239,8.10414,1524.1,1524.0,7.601]
[1744334206435,1.5429,1524.3,1524.0,7.601]
[1744334206783,1.5429,1524.3,1524.0,20.72399]
[1744334206977,1.5429,1524.3,1524.0,14.16249]
[1744334207274,8.10414,1524.1,1524.0,7.601]
[1744334207636,14.66562,1524.1,1523.7,14.16382]
[1744334207968,8.10414,1524.1,1523.7,14.16382]
[1744334208168,6.56188,1524.0,1523.7,7.601]
[1744334208535,1.5429,1523.9,1523.7,7.601]
[1744334209077,6.56254,1523.8,1523.7,7.601]
[1744334209573,14.66731,1523.9,1523.5,6.56364]
[1744334209774,6.56256,1523.8,1523.5,6.56364]
[1744334210279,1.5429,1523.9,1523.6,13.12639]
[1744334210655,8.1053,1523.9,1523.5,6.56371]
[1744334210862,6.56263,1523.8,1523.5,6.56371]
[1744334211177,14.66777,1523.9,1523.5,6.56371]
[1744334211335,14.66771,1523.9,1523.5,6.56371]
[1744334211536,8.1053,1523.9,1523.5,15.200254]
[1744334211750,8.1053,1523.9,1523.6,6.56333]
[1744334211949,8.1053,1523.9,1523.5,8.636544]
[1744334212177,6.56305,1523.7,1523.4,7.601]
[1744334212472,6.56256,1523.8,1523.4,7.601]
[1744334212717,1.5429,1523.9,1523.4,7.601]
[1744334212867,1.5429,1524.1,1523.8,6.56254]
[1744334213039,2.199032,1524.1,1523.8,6.56254]
[1744334213239,1.5429,1524.1,1523.8,6.56254]
[1744334213477,1.5429,1524.1,1523.9,6.56184]
[1744334213682,1.5429,1524.3,1523.8,14.63715415]
[1744334213841,1.5429,1524.3,1524.0,6.56143]
[1744334214052,1.5429,1524.3,1523.9,6.56211]
[1744334214293,1.5429,1524.3,1524.0,6.56152]
[1744334214481,1.5429,1524.3,1524.1,6.56107]
[1744334214680,0.1,1524.4,1524.2,6.56076]
[1744334214868,0.1,1524.4,1524.1,8.07595]
[1744334215064,0.1,1524.4,1524.1,3.584561]
[1744334215956,6.66003,1524.4,1524.1,3.584561]
[1744334216253,6.66003,1524.4,1524.0,6.06]
[1744334216707,13.22023,1524.4,1524.0,6.06]
[1744334216859,6.56099,1524.2,1524.0,6.06]
[1744334217067,7.97619,1524.2,1524.0,6.06]
[1744334218087,7.97619,1524.2,1523.8,7.589]
[1744334218088,6.56195,1524.0,1523.8,7.589]
[1744334218663,13.1239,1524.0,1523.8,7.589]
[1744334218864,6.56211,1523.9,1523.8,7.589]
[1744334219798,7.97731,1523.9,1523.8,7.589]
[1744334220004,1.4152,1523.9,1523.8,7.589]
[1744334221002,7.97731,1523.9,1523.8,7.589]
[1744334222302,14.53964,1523.9,1523.5,20.21263]
[1744334222502,7.97731,1523.9,1523.5,23.040878]
[1744334222665,6.56178,1524.0,1523.7,6.56277]
[1744334223364,13.12386,1524.0,1523.6,6.56319]
[1744334223608,6.5623,1523.9,1523.5,23.041008]
[1744334223763,6.5634,1523.6,1523.5,7.589]
[1744334224204,6.56414,1523.5,1523.2,9.6393111]
[1744334224364,13.12838,1523.5,1523.2,9.6393111]
[1744334224763,6.56414,1523.5,1523.2,16.2044211]
[1744334224998,1.4152,1523.6,1523.3,8.18508211]
[1744334225365,14.54246,1523.6,1523.3,1.62044211]
[1744334225603,6.56399,1523.5,1523.2,14.1541]
[1744334225810,6.56469,1523.3,1523.2,7.589]
[1744334225991,6.56469,1523.3,1523.0,15.65092714]
[1744334226171,6.56443,1523.4,1523.0,9.0946]
[1744334226365,13.12901,1523.4,1523.0,15.66042]
[1744334226707,6.56471,1523.3,1523.0,18.183095]
[1744334227002,6.56471,1523.3,1523.0,16.677495]
[1744334227300,6.56471,1523.3,1522.8,7.5656]
[1744334227301,7.97991,1523.3,1522.8,7.5656]
[1744334227484,6.56627,1523.0,1522.7,69.915]
[1744334227690,1.4152,1523.3,1522.7,76.4822]
[1744334227893,7.97996,1523.3,1522.9,6.56617]
[1744334228098,6.56517,1523.2,1522.8,6.56679]
[1744334228295,13.13069,1523.2,1522.8,13.34599141]
[1744334228494,6.56517,1523.2,1522.8,19.91261141]
[1744334228994,6.56517,1523.2,1522.9,6.56639]
[1744334229197,6.56614,1523.0,1522.7,70.40369503]
[1744334229508,6.56614,1523.0,1522.7,77.18289644]
[1744334229908,6.56614,1523.0,1522.7,83.75002644]
[1744334230211,6.56515,1523.2,1522.9,6.56626]
[1744334230511,6.56446,1523.4,1523.1,6.56555]
[1744334230710,6.56442,1523.4,1523.0,6.56592]
[1744334231006,6.56255,1523.8,1522.9,6.56636]
[1744334231007,1.4418,1523.2,1522.9,6.56636]
[1744334231185,8.00693,1523.2,1522.9,12.62636]
[1744334231783,1.4418,1523.2,1522.9,19.19272]
[1744334231991,6.56489,1523.3,1522.9,19.19272]
[1744334232177,6.56489,1523.3,1523.0,1.919272]
[1744334232378,13.12981,1523.3,1523.0,1.919272]
[1744334232577,6.56514,1523.2,1523.0,1.919272]
[1744334232776,8.00735,1523.1,1522.9,6.06]
[1744334233022,6.56598,1523.0,1522.9,6.06]
[1744334237034,6.56598,1523.0,1522.7,7.591]
[1744334237435,6.56598,1523.0,1522.6,15.16190552]
[1744334237737,13.13222,1523.0,1522.6,11.01657607]
[1744334238742,6.56706,1522.8,1522.6,2.42219055]
[1744334238941,1.4418,1522.8,1522.5,13.13603]
[1744334239140,1.4418,1522.8,1522.5,13.13586]
[1744334239346,1.4418,1522.8,1522.5,6.56793]
[1744334239651,6.56698,1522.8,1522.1,9.133]
[1744334239949,6.56857,1522.4,1522.1,9.133]
[1744334240605,14.57836,1522.5,1522.1,15.70265]
[1744334241034,14.57836,1522.5,1522.1,22.27238]
[1744334241249,6.56925,1522.3,1522.1,7.593]
[1744334241552,8.08246,1522.7,1522.3,13.1378]
[1744334241709,8.08246,1522.7,1522.3,6.5688]
[1744334242245,6.56774,1522.6,1522.2,14.68754]
[1744334242406,6.56774,1522.6,1522.2,8.11817]
[1744334242608,6.56774,1522.6,1522.2,14.68754]
[1744334242826,6.56774,1522.6,1522.2,17.64386941]
[1744334243159,1.5151,1522.7,1522.4,6.56831]
[1744334243322,8.0824,1522.7,1522.4,6.56831]
[1744334243854,8.0824,1522.7,1522.2,11.07428941]
[1744334243855,8.08245,1522.7,1522.2,11.07428941]
[1744334244324,6.56786,1522.6,1522.3,6.56879]
[1744334244525,6.56786,1522.6,1522.2,9.52548941]
[1744334244731,6.56821,1522.5,1522.2,9.52548941]
[1744334244925,6.56786,1522.6,1522.3,0.95254894]
[1744334245357,8.08245,1522.7,1522.3,14.09023894]
[1744334245536,14.64994,1522.7,1522.3,14.09023894]
[1744334246149,8.08245,1522.7,1522.3,14.09023894]
[1744334246454,14.64995,1522.7,1522.3,15.51233894]
[1744334247256,6.56776,1522.6,1522.3,7.52137894]
[1744334247551,6.569,1522.4,1522.2,9.01632941]
[1744334247756,6.569,1522.3,1522.1,7.584]
[1744334248120,6.5696,1522.2,1522.1,7.584]
[1744334248320,6.5696,1522.2,1521.9,6.06]
[1744334248526,6.5696,1522.2,1521.8,22.14809]
[1744334248527,6.57066,1522.0,1521.8,7.584]
[1744334248762,13.14139,1522.0,1521.7,7.584]
[1744334249125,13.14123,1522.0,1521.7,7.584]
[1744334249442,6.5708,1521.9,1521.7,7.584]
[1744334249855,8.02585,1522.1,1521.7,7.584]
[1744334250026,14.59426,1522.3,1521.9,6.57053]
[1744334250375,6.56954,1522.2,1521.8,6.57102]
[1744334250578,13.13921,1522.2,1521.8,6.57102]
[1744334250770,13.13921,1522.2,1521.8,8.97167404]
[1744334251385,1.4559,1522.5,1522.1,6.56967]
[1744334251614,14.59269,1522.5,1522.1,14.15467]
[1744334251749,6.56901,1522.3,1522.1,7.585]
[1744334252284,6.56875,1522.4,1522.1,7.585]
[1744334252285,13.13766,1522.4,1522.1,7.585]
[1744334252448,6.56903,1522.3,1522.1,7.585]
[1744334253386,6.56875,1522.4,1522.0,6.57008]
[1744334253679,6.56875,1522.4,1522.0,14.545428]
[1744334254089,6.56969,1522.2,1521.8,19.55767404]
[1744334254488,8.02497,1522.3,1521.9,13.14111]
[1744334254647,1.4559,1522.3,1522.0,6.57012]
[1744334254844,1.4559,1522.3,1522.0,6.57009]
[1744334255285,1.4559,1522.3,1522.0,13.14017]
[1744334255484,1.4559,1522.5,1522.2,6.56919]
[1744334255649,6.56788,1522.6,1522.2,15.57729]
[1744334255848,6.56779,1522.6,1522.3,6.56886]
[1744334256186,1.4559,1522.7,1522.3,6.56885]
[1744334256481,8.02323,1522.7,1522.4,6.56838]
[1744334257692,6.56692,1522.8,1522.5,6.56803]
[1744334257899,6.56692,1522.8,1522.4,1.313723]
[1744334257900,6.5676,1522.7,1522.4,1.313723]
[1744334258270,6.5676,1522.7,1522.3,6.5688]
[1744334258470,13.13521,1522.7,1522.3,6.5688]
[1744334258805,6.5676,1522.7,1522.3,6.5688]
[1744334258965,13.13509,1522.7,1522.3,6.5688]
[1744334259165,13.13499,1522.7,1522.3,13.13761]
[1744334259402,6.56749,1522.7,1522.3,16.00743504]
[1744334259615,13.13501,1522.7,1522.3,16.00743504]
[1744334260702,6.56749,1522.7,1522.3,16.00743504]
[1744334261105,6.56749,1522.7,1522.3,9.43862504]
[1744334261314,6.56893,1522.4,1522.2,6.06]
[1744334261490,6.569,1522.3,1522.0,14.17584]
[1744334262074,8.10007,1522.3,1522.0,6.06]
[1744334262269,6.56987,1522.1,1522.0,6.06]
[1744334262582,6.56991,1522.1,1521.8,16.55759404]
[1744334263422,8.09984,1522.3,1521.9,1.6557594]
[1744334263595,8.09996,1522.3,1522.0,6.57027]
[1744334264097,8.09996,1522.3,1521.9,14.7968694]
[1744334264308,1.5308,1522.3,1522.0,6.57022]
[1744334264519,14.66656,1522.6,1522.2,6.56929]
[1744334264778,6.56885,1522.4,1522.0,14.17585]
[1744334265009,13.13655,1522.5,1522.1,13.13947]
[1744334265204,1.5308,1522.4,1522.0,6.06]
[1744334265392,6.56925,1522.3,1522.0,12.63022]
[1744334265716,6.56925,1522.3,1522.0,14.86626814]
[1744334265921,6.56925,1522.3,1522.0,12.63022]
[1744334266104,13.13848,1522.3,1522.0,6.57022]
[1744334266289,13.13848,1522.3,1521.9,20.72728]
[1744334267222,13.13848,1522.3,1521.9,14.15664]
[1744334267723,13.13848,1522.3,1521.9,6.57064]
[1744334268028,13.13848,1522.3,1521.6,6.06]
[1744334268029,1.5308,1522.1,1521.6,6.06]
[1744334268209,8.10167,1521.9,1521.5,13.64474237]
[1744334268405,14.67268,1521.9,1521.5,13.14471]
[1744334268612,8.10167,1521.9,1521.5,13.1445]
[1744334269007,8.10167,1521.9,1521.5,6.57224]
[1744334269207,0.810167,1521.8,1521.4,7.586]
[1744334269408,8.10263,1521.7,1521.4,7.586]
[1744334269717,1.5308,1521.7,1521.4,14.15873]
[1744334270085,1.5308,1521.9,1521.6,6.57183]
[1744334270285,14.67261,1521.9,1521.5,6.57231]
[1744334271117,8.10161,1521.9,1521.6,6.57188]
[1744334272189,6.57122,1521.8,1521.5,6.57228]
[1744334273230,8.10161,1521.9,1521.6,6.57202]
[1744334273615,6.57033,1522.0,1521.7,6.57157]
[1744334273819,15.10116,1522.1,1521.7,6.57141]
[1744334274418,7.98007,1522.3,1522.0,6.5703]
[1744334275536,1.4109,1522.3,1521.8,4.5395]
[1744334275741,1.4109,1522.5,1522.2,6.56943]
[1744334275924,7.97928,1522.5,1522.1,6.56985]
[1744334276234,7.97928,1522.5,1522.1,6.56966]
[1744334276531,1.4109,1522.5,1522.2,6.56923]
[1744334276735,6.56859,1522.4,1522.1,6.56983]
[1744334276933,6.56859,1522.4,1522.0,13.14029]
[1744334277109,7.97911,1522.5,1522.1,6.5695]
[1744334277432,7.97911,1522.5,1522.2,6.56942]
[1744334277995,7.97911,1522.5,1522.1,7.22645]
[1744334278197,14.54749,1522.5,1522.1,6.5695]
[1744334280022,14.54749,1522.5,1522.1,13.13918]
[1744334280221,7.97911,1522.5,1522.1,6.5695]
[1744334280425,13.13849,1522.3,1521.9,8.04231]
[1744334280638,6.57002,1522.1,1521.8,6.06]
[1744334280928,6.57002,1522.1,1521.7,9.84752538]
[1744334280929,6.57097,1521.9,1521.7,7.374337]
[1744334281501,6.56991,1522.1,1521.7,13.945747]
[1744334281735,13.14007,1522.1,1521.7,13.945747]
[1744334281900,13.14004,1522.1,1521.7,20.517187]
[1744334282101,13.14004,1522.1,1521.7,13.945747]
[1744334282401,6.57033,1522.0,1521.7,12.63141]
[1744334282740,6.57033,1522.0,1521.6,6.57198]
[1744334282741,1.557,1521.9,1521.6,6.57198]
[1744334282906,1.557,1521.9,1521.6,6.57183]
[1744334283251,6.57033,1522.0,1521.7,6.57145]
[1744334283607,8.12602,1522.3,1521.9,6.57049]
[1744334283943,6.56951,1522.2,1521.9,6.57049]
[1744334284236,8.12602,1522.3,1521.9,13.14102]
[1744334284442,1.557,1522.3,1522.0,6.57024]
[1744334284642,1.557,1522.5,1522.2,6.56943]
[1744334284799,1.557,1522.5,1522.2,6.5693]
[1744334284996,1.557,1522.5,1522.1,14.1468]
[1744334285314,8.12541,1522.5,1522.1,22.73728]
[1744334285838,8.12541,1522.5,1522.2,6.56941]
[1744334286051,1.557,1522.7,1522.2,1.4716]
[1744334286201,1.557,1522.7,1522.4,6.56817]
[1744334286403,8.12361,1522.9,1522.5,6.56789]
[1744334286733,14.69026,1522.9,1522.5,6.56789]
[1744334286946,6.56697,1522.8,1522.4,6.56849]
[1744334287128,6.56735,1522.7,1522.4,6.56849]
[1744334287433,6.56735,1522.7,1522.3,13.13775]
[1744334287739,13.13493,1522.7,1522.3,8.635745]
[1744334287947,6.56735,1522.7,1522.3,8.635745]
[1744334288131,6.56687,1522.8,1522.4,13.13682]
[1744334288334,6.56687,1522.8,1522.5,6.56806]
[1744334288541,14.69005,1522.9,1522.5,13.13599]
[1744334288737,14.69005,1522.9,1522.5,6.56793]
[1744334289248,6.56685,1522.8,1522.3,2.066935]
[1744334289447,1.557,1522.9,1522.3,2.066935]
[1744334289609,8.12346,1522.9,1522.2,14.10096]
[1744334289806,8.12346,1522.9,1522.5,6.56778]
[1744334290012,1.557,1522.9,1522.4,1.4716]
[1744334290212,1.557,1523.1,1522.6,6.56771]
[1744334290452,1.557,1523.3,1522.8,6.56678]
[1744334290608,1.557,1523.3,1522.7,6.56726]
[1744334290609,6.5659,1523.1,1522.7,6.56726]
[1744334290818,1.4551,1522.9,1522.6,6.56767]
[1744334291326,8.02157,1522.9,1522.6,6.56767]
[1744334291523,8.02155,1522.9,1522.5,14.14408]
[1744334291722,0.55,1522.8,1522.3,4.5453]
[1744334291914,8.02316,1522.6,1522.3,3.0]
[1744334292115,14.59111,1522.6,1522.3,1.562929]
[1744334292457,14.59111,1522.6,1522.2,13.13859]
[1744334293110,8.02305,1522.6,1522.2,13.13859]
[1744334293347,8.02305,1522.6,1522.1,11.63130529]
[1744334293348,1.4551,1522.6,1522.1,11.63130529]
[1744334293514,1.4551,1522.6,1522.4,6.56827]
[1744334293715,1.4551,1522.6,1522.4,13.13657]
[1744334293916,1.4551,1522.6,1522.4,6.56827]
[1744334294116,8.67789,1523.0,1522.6,6.56748]
[1744334294517,6.56663,1522.9,1522.5,13.13598]
[1744334294743,6.56663,1522.9,1522.6,6.56771]
[1744334294946,13.13326,1522.9,1522.5,6.56798]
[1744334295254,6.56663,1522.9,1522.5,13.13598]
[1744334295421,13.13326,1522.9,1522.5,13.13598]
[1744334295842,13.13328,1522.9,1522.5,13.13598]
[1744334296255,8.02115,1523.0,1522.6,6.56768]
[1744334296458,1.4551,1523.2,1522.9,6.56641]
[1744334296618,18.42200451,1523.6,1523.0,13.13159]
[1744334296619,14.58393,1523.4,1523.0,13.13159]
[1744334296956,8.01942,1523.4,1523.0,13.13159]
[1744334297122,8.01942,1523.4,1522.9,8.11167]
[1744334297123,1.4551,1523.4,1522.9,8.11167]
[1744334297328,6.56514,1523.2,1522.9,6.56637]
[1744334297551,6.56507,1523.3,1522.9,6.56625]
[1744334297717,6.56507,1523.3,1522.9,6.56622]
[1744334297718,7.366937,1523.3,1522.9,6.56622]
[1744334298242,7.366937,1523.3,1522.9,13.13247]
[1744334298438,6.56492,1523.3,1523.0,6.56588]
[1744334298641,8.01944,1523.4,1523.0,6.56582]
[1744334299051,1.4551,1523.4,1523.1,6.56541]
[1744334299225,8.01854,1523.6,1523.2,6.56492]
[1744334299425,8.820394,1523.6,1523.2,6.56492]
[1744334299930,8.820394,1523.6,1523.3,6.56468]
[1744334300566,15.384074,1523.6,1523.2,6.56492]
[1744334300736,6.56303,1523.7,1523.3,8.10995]
[1744334300935,6.56254,1523.8,1523.2,6.56506]
[1744334301121,13.67757,1523.6,1523.2,6.56506]
[1744334301322,8.01813,1523.7,1523.3,6.56449]
[1744334301750,8.01813,1523.7,1523.2,13.12987]
[1744334301751,6.56351,1523.6,1523.2,13.12987]
[1744334302785,6.56351,1523.6,1523.1,2.02851657]
[1744334302786,8.01813,1523.7,1523.3,6.56453]
[1744334302985,1.4551,1523.7,1523.5,6.5636]
[1744334303142,14.57959,1523.9,1523.5,6.5636]
[1744334303544,1.4551,1523.9,1523.6,6.56329]
[1744334303756,2.311785,1523.9,1523.6,6.56329]
[1744334304269,1.4551,1523.9,1523.6,13.1265]
[1744334304464,1.4551,1523.9,1523.7,6.56291]
[1744334304683,1.4551,1523.9,1523.6,6.56321]
[1744334305585,1.4551,1523.9,1523.4,9.1073]
[1744334305794,6.56297,1523.7,1523.4,7.562]
[1744334305970,6.56288,1523.8,1523.4,22.759517]
[1744334306283,8.01721,1523.9,1523.5,6.5635]
[1744334306584,14.57954,1523.9,1523.5,6.5635]
[1744334306786,6.56256,1523.8,1523.4,16.195307]
[1744334306986,6.56211,1523.9,1523.6,6.56326]
[1744334307158,6.56211,1523.9,1523.5,1.5318]
[1744334307362,6.56254,1523.8,1523.5,6.56364]
[1744334308384,13.12447,1523.9,1523.5,6.56364]
[1744334309178,6.5626,1523.8,1523.5,6.56364]
[1744334310228,6.56211,1523.9,1523.5,13.12729]
[1744334310432,6.56211,1523.9,1523.6,6.56335]
[1744334310873,6.56211,1523.9,1523.5,13.12731]
[1744334311182,6.56368,1523.6,1523.4,7.562]
[1744334311395,13.12732,1523.6,1523.2,12.62498]
[1744334311610,6.56452,1523.4,1523.1,9.0918]
[1744334311771,8.12362,1523.4,1523.1,7.56]
[1744334312288,7.11343,1523.6,1523.2,6.56482]
[1744334312455,7.11343,1523.6,1523.3,6.56464]
[1744334312456,8.12253,1523.6,1523.3,6.56464]
[1744334313188,6.56301,1523.7,1523.4,6.56423]
[1744334313385,6.56303,1523.7,1523.4,6.56412]
[1744334313582,13.12622,1523.7,1523.4,6.56412]
[1744334314094,6.56349,1523.6,1523.3,6.56454]
[1744334314396,0.55,1523.7,1523.2,1.5318]
[1744334314553,6.56401,1523.5,1523.2,1.5318]
[1744334314753,6.56401,1523.5,1523.2,8.09684]
[1744334314973,6.5634,1523.6,1523.2,8.09672]
[1744334315176,6.5634,1523.6,1523.2,14.66168]
[1744334315575,13.12703,1523.6,1523.2,14.66168]
[1744334315873,13.12703,1523.6,1523.2,8.09672]
[1744334316076,8.12295,1523.5,1523.2,8.09672]
[1744334316371,6.5634,1523.6,1523.3,6.56461]
[1744334316982,13.127,1523.6,1523.3,6.56461]
[1744334317678,0.55,1523.5,1523.1,7.56]
[1744334317849,8.1234,1523.4,1523.1,7.56]
[1744334318055,6.56477,1523.3,1523.1,7.56]
[1744334318388,1.5591,1523.4,1523.0,1.5318]
[1744334318567,8.12502,1523.1,1522.7,8.09892]
[1744334318737,6.56616,1523.0,1522.7,4.360454]
[1744334318941,13.13239,1523.0,1522.7,4.360454]
[1744334319154,6.56616,1523.0,1522.7,4.360454]
[1744334319361,8.12387,1523.3,1522.9,6.56614]
[1744334319682,8.12309,1523.5,1523.2,6.5651]
[1744334319882,1.5591,1523.5,1523.2,13.13003]
[1744334320242,8.12296,1523.5,1523.2,6.56493]
[1744334320443,8.12296,1523.5,1523.2,7.877971]
[1744334321061,1.5591,1523.5,1523.2,14.442941]
[1744334322580,13.12611,1523.7,1523.3,6.56467]
[1744334322879,1.4854,1523.7,1523.4,6.56402]
[1744334323082,1.4854,1523.9,1523.6,6.56325]
[1744334323384,1.4854,1523.9,1523.6,13.12647]
[1744334323567,1.4854,1523.9,1523.6,14.65957]
[1744334323764,1.4854,1523.9,1523.6,8.09632]
[1744334323968,8.04771,1523.9,1523.6,1.5331]
[1744334324367,8.04771,1523.9,1523.6,8.09643]
[1744334324768,14.60652,1524.3,1523.9,6.56191]
[1744334324967,1.4854,1524.3,1523.8,6.56254]
[1744334325179,8.04599,1524.3,1523.9,8.09504]
[1744334325510,6.56173,1524.0,1523.7,14.156]
[1744334325664,6.56216,1523.9,1523.7,7.5931]
[1744334325858,6.56173,1524.0,1523.6,6.56323]
[1744334325859,14.60908,1524.0,1523.6,6.56323]
[1744334326199,6.56217,1523.9,1523.5,14.15672]
[1744334326399,6.56217,1523.9,1523.5,17.33481174]
[1744334327097,6.56217,1523.9,1523.6,6.56324]
[1744334327473,8.04709,1524.0,1523.6,13.12648]
[1744334327885,6.56215,1523.9,1523.6,6.56324]
[1744334328093,6.56283,1523.8,1523.4,14.12423]
[1744334328268,13.12567,1523.8,1523.4,14.12423]
[1744334328664,6.56383,1523.5,1523.4,7.56]
[1744334328870,6.56383,1523.5,1523.2,6.56508]
[1744334329266,13.1275,1523.6,1523.2,6.56491]
[1744334329466,13.942099,1523.6,1523.2,6.56491]
[1744334330298,7.378349,1523.6,1523.2,6.56491]
[1744334330466,8.04843,1523.7,1523.3,6.56435]
[1744334330666,8.04843,1523.7,1523.3,13.12881]
[1744334330868,8.04843,1523.7,1523.3,6.56435]
[1744334331101,8.04843,1523.7,1523.3,13.12882]
[1744334331396,1.4854,1523.7,1523.4,6.56409]
[1744334331573,1.4854,1523.7,1523.3,2.845982]
[1744334331574,14.61167,1523.7,1523.3,9.410522]
[1744334331773,8.04837,1523.7,1523.3,15.975012]
[1744334332569,1.4854,1523.7,1523.4,6.564]
[1744334332795,1.4854,1523.7,1523.4,13.12811]
[1744334333173,8.04756,1523.9,1523.5,6.56382]
[1744334333370,8.04756,1523.9,1523.4,1.5974092]
[1744334333371,1.4854,1523.9,1523.4,8.1616292]
[1744334333612,6.5647,1523.3,1523.1,1.5331]
[1744334333907,6.5647,1523.3,1522.9,1.5331]
[1744334333908,6.56573,1523.1,1522.9,1.5331]
[1744334334234,8.05113,1523.1,1522.8,7.0028554]
[1744334334368,1.4854,1523.1,1522.8,7.0026754]
[1744334334569,1.4854,1523.1,1522.9,6.5664]
[1744334334802,1.4854,1523.1,1522.8,13.5693754]
[1744334335002,1.4854,1523.1,1522.8,7.0026754]
[1744334335198,8.05096,1523.1,1522.8,0.4360454]
[1744334335405,8.05096,1523.1,1522.8,7.0028354]
[1744334336281,1.4854,1523.1,1522.8,13.5694654]
[1744334336482,1.4854,1523.1,1522.8,7.0026754]
[1744334336684,8.05125,1523.1,1522.7,15.64737]
[1744334336887,6.56647,1522.9,1522.6,6.56756]
[1744334339187,1.4611,1522.7,1522.4,14.11541]
[1744334339916,0.55,1523.0,1522.5,6.56798]
[1744334339917,8.02754,1522.9,1522.5,6.56798]
[1744334340116,1.4611,1522.9,1522.5,1.411498]
[1744334340327,6.56562,1523.1,1522.6,7.99778]
[1744334340328,1.4611,1523.1,1522.6,7.99778]
[1744334340529,6.56426,1523.4,1522.8,6.56681]
[1744334340698,13.13403,1522.8,1522.6,6.06]
[1744334341028,6.56688,1522.8,1522.4,22.61284568]
[1744334341328,13.13412,1522.8,1522.4,16.94437063]
[1744334341526,0.55,1523.0,1522.4,10.86455596]
[1744334341824,1.4611,1523.5,1522.9,7.99626]
[1744334342027,1.4611,1523.7,1523.4,6.56421]
[1744334342199,6.56379,1523.6,1523.3,1.4301]
[1744334342395,13.1275,1523.6,1523.2,6.56491]
[1744334342597,6.56371,1523.6,1523.3,6.56468]
[1744334342797,8.02422,1523.7,1523.3,6.56468]
[1744334342996,14.58753,1523.7,1523.3,6.56468]
[1744334343220,14.58753,1523.7,1523.3,7.877639]
[1744334343727,1.4611,1523.7,1523.3,1.312959]
[1744334343913,8.02337,1523.9,1523.6,6.56333]
[1744334344432,8.02337,1523.9,1523.5,7.99358]
[1744334344727,9.28655902,1524.1,1523.6,6.56312]
[1744334345034,9.28655902,1524.1,1523.7,13.12578]
[1744334345203,9.28655902,1524.1,1523.6,12.62333]
[1744334345204,13.1238,1524.0,1523.6,12.62333]
[1744334345400,6.56171,1524.0,1523.6,19.18652]
[1744334345819,6.56171,1524.0,1523.7,6.56291]
[1744334346126,6.561,1524.2,1523.8,6.56242]
[1744334346325,1.4611,1524.3,1523.8,6.56251]
[1744334346627,6.56112,1524.2,1523.8,6.56251]
[1744334346815,7.217432,1524.1,1523.8,6.56251]
[1744334347496,6.56132,1524.1,1523.8,6.56251]
[1744334348033,6.56112,1524.2,1523.8,6.56251]
[1744334348034,13.12236,1524.2,1523.8,6.56251]
[1744334348343,6.56112,1524.2,1523.8,6.56234]
[1744334348726,13.12221,1524.2,1523.8,6.56234]
[1744334348924,6.56109,1524.2,1523.8,6.56232]
[1744334349400,6.56109,1524.2,1523.8,13.12469]
[1744334349739,8.57154,1524.3,1523.7,6.56297]
[1744334349909,8.57154,1524.3,1523.9,6.56191]
[1744334350542,15.13219,1524.3,1523.9,6.56191]
[1744334351451,8.57154,1524.3,1523.9,6.56191]
[1744334352341,8.57154,1524.3,1523.9,13.12381]
[1744334352542,1.4611,1524.3,1524.0,6.56166]
[1744334352746,0.1,1524.4,1524.1,6.5611]
[1744334352938,0.1,1524.4,1524.1,6.56108]
[1744334354159,6.56098,1524.2,1523.9,6.06]
[1744334354341,6.56043,1524.3,1523.9,12.62177]
[1744334354515,6.56043,1524.3,1523.9,19.18387]
[1744334354714,6.56043,1524.3,1523.9,12.62177]
[1744334355350,6.56043,1524.3,1523.9,19.18363]
[1744334356142,6.56043,1524.3,1523.9,12.62177]
[1744334356340,6.56043,1524.3,1523.8,7.547]
[1744334356341,6.56124,1524.1,1523.8,7.547]
[1744334356651,6.56172,1524.0,1523.8,7.547]
[1744334356879,8.77377872,1524.3,1523.8,7.547]